bitfinex-derivatives/quotes_BTCF0:USTF0_20250108
["timestamp","ask_amount","ask_price","bid_price","bid_amount"]
[1736324170605,0.052236,95742.0,95734.0,0.0484]
[1736324170910,0.052236,95742.0,95734.0,0.05763818]
[1736324173710,0.052236,95742.0,95734.0,0.05663818]
[1736324174612,0.05224,95737.0,95734.0,0.00923818]
[1736324174904,0.05224,95737.0,95730.0,0.3608]
[1736324175094,0.05224,95737.0,95727.0,0.052244]
[1736324175502,0.3608,95739.0,95727.0,0.052244]
[1736324175801,0.3608,95739.0,95726.0,0.0469]
[1736324176101,0.052243,95730.0,95726.0,0.0469]
[1736324177208,0.052239,95738.0,95726.0,0.0469]
[1736324177407,0.3608,95739.0,95726.0,0.0469]
[1736324178095,0.3608,95739.0,95726.0,0.0479]
[1736324178495,0.05224,95736.0,95729.0,0.10482536]
[1736324179012,0.3608,95739.0,95729.0,0.10482536]
[1736324179212,0.3608,95739.0,95729.0,0.15706836]
[1736324179408,0.3608,95739.0,95730.0,0.0486]
[1736324180412,0.3608,95739.0,95731.0,0.052242]
[1736324184117,0.413038,95739.0,95730.0,0.0486]
[1736324184713,0.413038,95739.0,95726.0,0.0469]
[1736324186222,0.413038,95739.0,95726.0,0.099145]
[1736324186626,0.413038,95739.0,95729.0,0.10482536]
[1736324186927,0.3608,95739.0,95733.0,0.052241]
[1736324187729,0.3608,95739.0,95734.0,0.05224]
[1736324189332,0.3608,95749.0,95737.0,0.052239]
[1736324189534,0.3608,95749.0,95739.0,0.10482536]
[1736324191133,0.3608,95749.0,95738.0,0.052238]
[1736324192129,0.3608,95749.0,95739.0,0.15706336]
[1736324192333,0.3608,95749.0,95740.0,0.052237]
[1736324192832,0.3608,95749.0,95741.0,0.0482]
[1736324193222,0.0476,95758.0,95748.0,0.052233]
[1736324193419,0.152227,95760.0,95749.0,0.0471]
[1736324194437,0.1,95760.0,95749.0,0.0471]
[1736324194636,0.052227,95759.0,95749.0,0.0471]
[1736324195340,0.3608,95752.0,95749.0,0.0471]
[1736324196025,0.052231,95751.0,95749.0,0.0471]
[1736324209347,0.16878269,95760.0,95749.0,0.0471]
[1736324209533,0.052229,95756.0,95749.0,0.0471]
[1736324209739,0.16878269,95760.0,95749.0,0.0471]
[1736324209935,0.052229,95755.0,95749.0,0.0471]
[1736324211039,0.16878269,95760.0,95749.0,0.0471]
[1736324211242,0.16878269,95760.0,95748.0,0.052233]
[1736324211548,0.052229,95756.0,95748.0,0.052233]
[1736324216352,0.052229,95756.0,95748.0,0.055833]
[1736324217035,0.05223,95754.0,95748.0,0.0036]
[1736324218339,0.1,95760.0,95748.0,0.0036]
[1736324218541,0.16878269,95760.0,95748.0,0.0036]
[1736324218850,0.16878269,95760.0,95748.0,0.055833]
[1736324219051,0.052228,95758.0,95748.0,0.055833]
[1736324219656,0.052228,95757.0,95748.0,0.055833]
[1736324219952,0.052229,95756.0,95748.0,0.0036]
[1736324222746,0.3608,95770.0,95755.0,0.3644]
[1736324223048,0.1,95780.0,95760.0,0.13756538]
[1736324223049,0.0457,95779.0,95760.0,0.13756538]
[1736324223249,0.097917,95779.0,95766.0,0.3608]
[1736324223452,0.052217,95778.0,95767.0,0.0469]
[1736324223639,0.052217,95777.0,95767.0,0.0469]
[1736324223839,0.052218,95776.0,95767.0,0.0469]
[1736324224044,0.0457,95779.0,95767.0,0.0469]
[1736324224045,0.052218,95775.0,95767.0,0.0469]
[1736324224540,0.0457,95779.0,95767.0,0.0469]
[1736324224746,0.1,95780.0,95767.0,0.0469]
[1736324225050,0.1,95780.0,95771.0,0.05222]
[1736324225846,0.1,95780.0,95772.0,0.0484]
[1736324226243,0.1,95780.0,95771.0,0.0107526]
[1736324226548,0.099516,95779.0,95771.0,0.0107526]
[1736324226948,0.3608,95772.0,95771.0,0.0107526]
[1736324227149,0.41302,95772.0,95771.0,0.001]
[1736324228852,0.41302,95772.0,95767.0,0.00955328]
[1736324229155,0.41302,95772.0,95771.0,0.001]
[1736324230151,0.052222,95770.0,95763.0,0.052224]
[1736324232359,0.052222,95770.0,95764.0,0.052224]
[1736324232561,0.052217,95777.0,95765.0,0.052223]
[1736324232755,0.052218,95776.0,95767.0,0.06878269]
[1736324233963,0.052218,95776.0,95769.0,0.052221]
[1736324234259,0.052218,95776.0,95770.0,0.0036]
[1736324236361,0.052218,95776.0,95770.0,0.0046]
[1736324237564,0.1,95780.0,95770.0,0.0046]
[1736324238556,0.1,95780.0,95770.0,0.17302419]
[1736324238751,0.1,95780.0,95771.0,0.00208831]
[1736324238954,0.1,95780.0,95779.0,0.052216]
[1736324240053,0.1,95780.0,95779.0,0.413016]
[1736324240258,0.052208,95793.0,95779.0,0.3644]
[1736324240456,0.60060001,95800.0,95784.0,0.0036]
[1736324240760,0.052207,95796.0,95790.0,0.06878269]
[1736324240960,0.052207,95796.0,95787.0,0.3608]
[1736324241360,0.413007,95796.0,95787.0,0.3608]
[1736324241956,0.413007,95796.0,95790.0,0.001]
[1736324242466,0.413007,95796.0,95787.0,0.3608]
[1736324242679,0.413007,95796.0,95787.0,0.3618]
[1736324242851,0.3608,95796.0,95787.0,0.3618]
[1736324243057,0.3608,95796.0,95788.0,0.052211]
[1736324243262,0.3608,95796.0,95790.0,0.001]
[1736324244865,0.3608,95796.0,95788.0,0.052211]
[1736324245372,0.59686001,95800.0,95787.0,0.37073245]
[1736324245665,0.00056001,95831.0,95795.0,0.3608]
[1736324245867,0.0243,95840.0,95830.0,0.3608]
[1736324246166,0.3608,95857.0,95839.0,0.3608]
[1736324246367,0.3608,95857.0,95847.0,0.20942252]
[1736324246555,0.3608,95857.0,95847.0,0.10471126]
[1736324246869,0.3608,95857.0,95847.0,0.20942252]
[1736324247059,0.3608,95857.0,95847.0,0.10471126]
[1736324247468,0.11232141,95856.0,95847.0,0.11472215]
[1736324247667,0.11232141,95856.0,95849.0,0.3608]
[1736324247873,0.11232141,95856.0,95854.0,0.052175]
[1736324248166,0.11232141,95856.0,95849.0,0.3608]
[1736324248167,0.42564433,95860.0,95859.0,0.052173]
[1736324248356,0.11227054,95868.0,95852.0,0.3608]
[1736324248556,0.11227054,95868.0,95865.0,0.3608]
[1736324248762,0.11227054,95868.0,95858.0,0.10471126]
[1736324248966,0.11227054,95868.0,95852.0,0.3608]
[1736324248967,0.11227054,95868.0,95861.0,0.3608]
[1736324249269,0.3608,95866.0,95858.0,0.10471126]
[1736324249471,0.11227054,95868.0,95859.0,0.3608]
[1736324249769,0.46136001,95880.0,95868.0,0.052167]
[1736324250070,0.56551126,95880.0,95861.0,0.001]
[1736324250369,0.4608,95880.0,95865.0,0.052169]
[1736324250568,0.4608,95880.0,95868.0,0.052167]
[1736324250767,0.4608,95880.0,95864.0,0.05217]
[1736324251266,0.4608,95880.0,95870.0,0.10471126]
[1736324251874,0.1,95880.0,95879.0,0.052162]
[1736324252566,0.60056001,95900.0,95883.0,0.052159]
[1736324252770,0.60056001,95900.0,95879.0,0.0469]
[1736324252771,0.6,95900.0,95899.0,0.052151]
[1736324253357,0.6,95900.0,95899.0,0.412951]
[1736324253860,0.28413854,95900.0,95899.0,0.412951]
[1736324254556,0.28413854,95900.0,95899.0,0.3608]
[1736324255072,0.28413854,95900.0,95899.0,0.3618]
[1736324255257,0.28413854,95900.0,95899.0,0.001]
[1736324255770,0.28413854,95900.0,95899.0,0.052151]
[1736324259566,0.20843854,95900.0,95899.0,0.052151]
[1736324260373,0.17142057,95900.0,95899.0,0.052151]
[1736324264570,0.17142057,95900.0,95899.0,0.041691]
[1736324265478,0.17142057,95900.0,95898.0,0.3608]
[1736324265780,0.17142057,95900.0,95899.0,0.00208552]
[1736324267067,0.17142057,95900.0,95899.0,0.05423652]
[1736324267266,0.17142057,95900.0,95899.0,0.00208552]
[1736324271883,0.17142057,95900.0,95899.0,0.36288552]
[1736324272071,0.1,95920.0,95901.0,0.05215]
[1736324272272,0.1,95920.0,95915.0,0.3608]
[1736324272480,0.1,95920.0,95916.0,0.00208515]
[1736324272868,0.3608,95918.0,95916.0,0.00208515]
[1736324273276,0.0474,95917.0,95916.0,0.00208515]
[1736324273673,0.0474,95917.0,95916.0,0.00308515]
[1736324275381,0.052142,95916.0,95894.0,0.3608]
[1736324275680,0.46551126,95910.0,95900.0,0.0020855]
[1736324275983,0.3608,95902.0,95900.0,0.0020855]
[1736324277075,0.05215,95901.0,95900.0,0.0020855]
[1736324277483,0.052154,95894.0,95886.0,0.3608]
[1736324277782,0.049,95893.0,95886.0,0.3608]
[1736324278283,0.052157,95887.0,95880.0,0.10471126]
[1736324278783,0.049,95893.0,95880.0,0.11447637]
[1736324278983,0.051,95893.0,95880.0,0.11447637]
[1736324279375,0.051,95893.0,95881.0,0.00208591]
[1736324279680,0.002,95887.0,95881.0,0.00208591]
[1736324280276,0.049,95893.0,95881.0,0.00208591]
[1736324280685,0.0492,95892.0,95881.0,0.00208591]
[1736324282580,0.3608,95883.0,95881.0,0.00208591]
[1736324282785,0.05216,95882.0,95881.0,0.00208591]
[1736324285290,0.05316,95882.0,95881.0,0.00208591]
[1736324288689,0.05816,95882.0,95881.0,0.00208591]
[1736324289189,0.05916,95882.0,95881.0,0.00308591]
[1736324292380,0.05716,95882.0,95881.0,0.00208591]
[1736324294688,0.052165,95873.0,95860.0,0.3608]
[1736324295986,0.056165,95873.0,95851.0,0.1416]
[1736324296390,0.056165,95873.0,95863.0,0.0078983]
[1736324297691,0.059165,95873.0,95872.0,0.0025646]
[1736324298199,0.056165,95873.0,95872.0,0.0015646]
[1736324299592,0.15223219,95873.0,95872.0,0.0015646]
[1736324300494,0.14823219,95873.0,95872.0,0.0015646]
[1736324300698,0.15023219,95873.0,95872.0,0.0015646]
[1736324301796,0.09806719,95873.0,95872.0,0.0015646]
[1736324302301,0.09806719,95873.0,95872.0,0.00365071]
[1736324302686,0.09806719,95873.0,95872.0,0.05055071]
[1736324304098,0.09606719,95873.0,95872.0,0.05055071]
[1736324304403,0.09606719,95873.0,95872.0,0.05255071]
[1736324304601,0.02086719,95873.0,95872.0,0.05255071]
[1736324304800,0.00998719,95873.0,95872.0,0.41335071]
[1736324305000,0.4072,95902.0,95872.0,0.41335071]
[1736324305198,0.052153,95896.0,95884.0,0.3608]
[1736324305499,0.052153,95896.0,95885.0,0.00208583]
[1736324306093,0.3608,95902.0,95885.0,0.05424383]
[1736324306094,0.34261726,95889.0,95885.0,0.05424383]
[1736324306996,0.34261726,95889.0,95886.0,0.052158]
[1736324307198,0.34261726,95889.0,95887.0,0.00208578]
[1736324307509,0.34261726,95889.0,95888.0,0.052157]
[1736324307894,0.34761726,95889.0,95888.0,0.052157]
[1736324308295,0.34761726,95889.0,95887.0,0.00208578]
[1736324308494,0.34461726,95889.0,95887.0,0.00208578]
[1736324309003,0.34461726,95889.0,95887.0,0.0084584]
[1736324309194,0.34253136,95889.0,95888.0,0.052157]
[1736324310102,0.21624632,95889.0,95888.0,0.352157]
[1736324310403,0.0322938,95889.0,95888.0,0.352157]
[1736324310905,0.0312938,95889.0,95888.0,0.352157]
[1736324311296,0.14493623,95919.0,95888.0,0.352157]
[1736324311596,0.14493623,95919.0,95910.0,0.052144]
[1736324311797,0.14493623,95919.0,95911.0,0.00208526]
[1736324312198,0.0489,95919.0,95911.0,0.00208526]
[1736324312397,0.0489,95919.0,95912.0,0.052144]
[1736324312591,0.0489,95919.0,95914.0,0.052142]
[1736324312794,0.1,95920.0,95916.0,0.052141]
[1736324312994,0.1,95920.0,95917.0,0.00208513]
[1736324313606,0.006,95919.0,95917.0,0.00208513]
[1736324314005,0.1,95920.0,95917.0,0.00208513]
[1736324314207,0.106,95920.0,95917.0,0.00945837]
[1736324314506,0.106,95920.0,95917.0,0.00308513]
[1736324314701,0.006,95919.0,95917.0,0.00308513]
[1736324315403,0.006,95919.0,95907.0,0.3608]
[1736324315706,0.0954,95918.0,95907.0,0.3608]
[1736324316105,0.006,95919.0,95908.0,0.10471126]
[1736324316406,0.1,95920.0,95908.0,0.10471126]
[1736324316407,0.106,95920.0,95918.0,0.3608]
[1736324316602,0.106,95920.0,95919.0,0.00208509]
[1736324317507,0.1,95920.0,95919.0,0.00208509]
[1736324318202,0.0254106,95920.0,95919.0,0.00308509]
[1736324318402,0.46136001,95940.0,95938.0,0.052129]
[1736324318403,0.1,95940.0,95938.0,0.052129]
[1736324318603,0.1,95940.0,95939.0,0.3608]
[1736324318900,0.09542534,95940.0,95939.0,0.3608]
[1736324319100,0.01860126,95940.0,95939.0,0.3608]
[1736324319296,0.11216567,95959.0,95939.0,0.409]
[1736324319502,0.11216567,95959.0,95954.0,0.412921]
[1736324319700,0.00900238,95959.0,95954.0,0.412921]
[1736324319902,0.49783639,95960.0,95955.0,0.00208431]
[1736324320104,0.49727638,95960.0,95955.0,0.00208431]
[1736324320300,0.49727638,95960.0,95958.0,0.052119]
[1736324320504,0.49727638,95960.0,95959.0,0.00208422]
[1736324321110,0.47728238,95960.0,95959.0,0.00208422]
[1736324321413,0.47828238,95960.0,95959.0,0.00208422]
[1736324322114,0.29910238,95960.0,95959.0,0.00840563]
[1736324322408,0.29910238,95960.0,95959.0,0.00208422]
[1736324322912,0.29810238,95960.0,95959.0,0.00308422]
[1736324325803,0.29810238,95960.0,95954.0,0.3608]
[1736324326113,0.0461,95959.0,95958.0,0.052119]
[1736324326704,0.03698437,95959.0,95958.0,0.052119]
[1736324326904,0.29810238,95960.0,95958.0,0.052119]
[1736324327114,0.29810238,95960.0,95959.0,0.00208422]
[1736324327912,0.29910238,95960.0,95959.0,0.00208422]
[1736324329205,0.3608,95994.0,95959.0,0.00208422]
[1736324329409,0.0483,95989.0,95987.0,0.3608]
[1736324330512,0.0483,95989.0,95987.0,0.412903]
[1736324330708,0.0513,95989.0,95987.0,0.413903]
[1736324331107,0.0513,95989.0,95988.0,0.00208359]
[1736324332813,0.0513,95989.0,95988.0,0.00841029]
[1736324333016,0.0483,95989.0,95988.0,0.00941029]
[1736324334416,0.0483,95989.0,95987.0,0.413983]
[1736324334616,0.0483,95989.0,95987.0,0.412903]
[1736324335120,0.0483,95989.0,95987.0,0.29293778]
[1736324335315,0.0483,95989.0,95979.0,0.15682326]
[1736324335316,0.0483,95989.0,95975.0,0.3608]
[1736324335505,0.3608,95985.0,95975.0,0.3608]
[1736324335711,0.0494,95984.0,95975.0,0.3608]
[1736324336111,0.0494,95984.0,95975.0,0.2867]
[1736324336316,0.0494,95984.0,95975.0,0.2928726]
[1736324336919,0.0514,95984.0,95975.0,0.2938726]
[1736324338407,0.002,95984.0,95975.0,0.2938726]
[1736324338719,0.002,95984.0,95982.0,0.052111]
[1736324338925,0.002,95984.0,95983.0,0.3608]
[1736324340012,0.0483,95989.0,95982.0,0.052111]
[1736324340229,0.002,95984.0,95982.0,0.053111]
[1736324340719,0.002,95984.0,95983.0,0.001]
[1736324341420,0.002,95984.0,95982.0,0.001]
[1736324341828,0.002,95984.0,95983.0,0.05211]
[1736324343015,0.0483,95989.0,95986.0,0.052108]
[1736324343213,0.002,95984.0,95983.0,0.05311]
[1736324343418,0.002,95984.0,95983.0,0.0551937]
[1736324344313,0.3608,95994.0,95993.0,0.052105]
[1736324344624,0.0458,96015.0,95999.0,0.052102]
[1736324344825,0.0485,96014.0,95999.0,0.052102]
[1736324345526,0.0485,96014.0,95999.0,0.041662]
[1736324345726,0.3608,96012.0,95999.0,0.041662]
[1736324345926,0.3608,96012.0,95993.0,0.3608]
[1736324346122,0.3608,96003.0,95991.0,0.052106]
[1736324346724,0.3608,96003.0,95993.0,0.001]
[1736324347217,0.3608,96003.0,95992.0,0.052105]
[1736324347822,0.3608,95994.0,95993.0,0.001]
[1736324348221,0.3608,96003.0,95993.0,0.001]
[1736324348625,0.3608,96003.0,95993.0,0.053105]
[1736324349719,0.3608,96003.0,95993.0,0.052105]
[1736324350119,0.3608,96003.0,95992.0,0.001]
[1736324350316,0.3608,96003.0,95991.0,0.00625302]
[1736324350523,0.3608,96003.0,95999.0,0.052102]
[1736324352535,0.3608,96003.0,95999.0,0.041662]
[1736324353725,0.3608,96003.0,95999.0,0.042662]
[1736324356635,0.16972001,96000.0,95999.0,0.042662]
[1736324357434,0.11223153,96000.0,95999.0,0.042662]
[1736324359233,0.1,96000.0,95999.0,0.042662]
[1736324366938,0.1,96000.0,95999.0,0.041662]
[1736324368444,0.03828364,96000.0,95999.0,0.041662]
[1736324370352,0.03828364,96000.0,95990.0,0.00633528]
[1736324370543,0.3608,95991.0,95981.0,0.467]
[1736324370743,0.3608,95991.0,95981.0,0.520271]
[1736324370939,0.3608,95991.0,95981.0,0.46816]
[1736324371250,0.0435,95990.0,95977.0,0.3608]
[1736324371549,0.3192,95982.0,95977.0,0.00793116]
[1736324371741,0.3192,95982.0,95965.0,0.05212]
[1736324371942,0.10421704,95980.0,95965.0,0.05212]
[1736324372142,0.048,95979.0,95968.0,0.02386226]
[1736324372343,0.15633104,95978.0,95956.0,0.412925]
[1736324372747,0.3608,95968.0,95967.0,0.00801503]
[1736324372945,0.3608,95968.0,95956.0,0.412925]
[1736324373147,0.10421704,95966.0,95956.0,0.052125]
[1736324373350,0.3608,95960.0,95951.0,0.00112]
[1736324373653,0.3608,95952.0,95918.0,0.3608]
[1736324373851,0.3608,95952.0,95927.0,0.3608]
[1736324373852,0.3608,95938.0,95927.0,0.3608]
[1736324374051,0.3608,95938.0,95936.0,0.052136]
[1736324374245,0.3608,95938.0,95918.0,0.36288511]
[1736324374448,0.10421704,95930.0,95918.0,0.37072054]
[1736324374846,0.10421704,95930.0,95920.0,0.052145]
[1736324375155,0.10421704,95930.0,95921.0,0.052144]
[1736324375353,0.10421704,95930.0,95922.0,0.052143]
[1736324376545,0.10421704,95930.0,95922.0,0.054143]
[1736324377049,0.10421704,95930.0,95922.0,0.053143]
[1736324377357,0.10421704,95932.0,95922.0,0.053143]
[1736324377548,0.3608,95944.0,95922.0,0.052143]
[1736324377848,0.10421704,95932.0,95922.0,0.054143]
[1736324378053,0.10421704,95932.0,95922.0,0.055143]
[1736324378750,0.46501704,95932.0,95922.0,0.055143]
[1736324378945,0.46501704,95932.0,95922.0,0.003]
[1736324379149,0.46501704,95932.0,95922.0,0.001]
[1736324379351,0.3608,95923.0,95922.0,0.002]
[1736324379552,0.3608,95923.0,95922.0,0.001]
[1736324379751,0.3608,95923.0,95922.0,0.002]
[1736324379953,0.3608,95931.0,95922.0,0.001]
[1736324380257,0.3608,95931.0,95922.0,0.003]
[1736324380654,0.3608,95931.0,95922.0,0.002]
[1736324381957,0.3608,95923.0,95922.0,0.002]
[1736324382158,0.3608,95923.0,95922.0,0.001]
[1736324382353,0.3608,95923.0,95922.0,0.002]
[1736324383357,0.3608,95923.0,95918.0,0.00208511]
[1736324383552,0.0914,95922.0,95918.0,0.00208511]
[1736324385764,0.0466,95922.0,95921.0,0.052144]
[1736324385964,0.0526,95922.0,95921.0,0.052144]
[1736324386560,0.0506,95922.0,95918.0,0.00208511]
[1736324387164,0.0496,95922.0,95918.0,0.00208511]
[1736324387561,0.0506,95922.0,95918.0,0.00208511]
[1736324388461,0.0496,95922.0,95918.0,0.00308511]
[1736324388766,0.0516,95922.0,95918.0,0.00308511]
[1736324389466,0.0486,95922.0,95918.0,0.00308511]
[1736324391259,0.0486,95922.0,95918.0,0.00208511]
[1736324393065,0.0506,95922.0,95918.0,0.00208511]
[1736324401171,0.004,95922.0,95918.0,0.05423011]
[1736324401361,0.0519,95939.0,95921.0,0.3608]
[1736324401566,0.10421704,95950.0,95933.0,0.052137]
[1736324401774,0.0519,95949.0,95933.0,0.052137]
[1736324401963,0.10421704,95943.0,95933.0,0.052137]
[1736324402968,0.10421704,95943.0,95929.0,0.3608]
[1736324403169,0.3608,95932.0,95926.0,0.052141]
[1736324404078,0.3608,95932.0,95926.0,0.05991082]
[1736324404776,0.3608,95932.0,95927.0,0.052141]
[1736324405176,0.3608,95944.0,95931.0,0.3608]
[1736324405375,0.3608,95944.0,95941.0,0.052133]
[1736324407077,0.3608,95944.0,95932.0,0.105938]
[1736324407273,0.10421704,95942.0,95932.0,0.0538]
[1736324407478,0.3608,95935.0,95921.0,0.052144]
[1736324408987,0.10421704,95931.0,95921.0,0.052144]
[1736324409177,0.10421704,95931.0,95920.0,0.0516]
[1736324409378,0.3608,95925.0,95920.0,0.0516]
[1736324409578,0.10421704,95931.0,95920.0,0.0516]
[1736324410784,0.3608,95926.0,95920.0,0.0516]
[1736324410978,0.3608,95926.0,95919.0,0.00786249]
[1736324411180,0.3608,95926.0,95915.0,0.0495]
[1736324412191,0.3608,95926.0,95918.0,0.00995214]
[1736324412381,0.3608,95926.0,95918.0,0.00208511]
[1736324413984,0.052144,95922.0,95918.0,0.00208511]
[1736324416190,0.3608,95924.0,95918.0,0.00208511]
[1736324418889,0.3608,95924.0,95922.0,0.052143]
[1736324419088,0.41166001,95939.0,95934.0,0.052137]
[1736324419289,0.3608,95939.0,95934.0,0.052137]
[1736324419485,0.3608,95939.0,95935.0,0.054]
[1736324419884,0.05213,95947.0,95935.0,0.054]
[1736324420285,0.09600402,95938.0,95935.0,0.054]
[1736324420883,0.09600402,95938.0,95931.0,0.3608]
[1736324421087,0.052136,95935.0,95922.0,0.3608]
[1736324421289,0.10421704,95932.0,95922.0,0.3608]
[1736324421690,0.0503,95934.0,95922.0,0.3608]
[1736324422995,0.102437,95934.0,95922.0,0.3608]
[1736324423183,0.10421704,95932.0,95922.0,0.3608]
[1736324423492,0.3608,95928.0,95921.0,0.054]
[1736324423689,0.41294,95928.0,95921.0,0.054]
[1736324423886,0.41294,95928.0,95918.0,0.01176819]
[1736324424283,0.09600402,95927.0,95918.0,0.01176819]
[1736324424886,0.3608,95920.0,95918.0,0.01176819]
[1736324425886,0.412945,95920.0,95918.0,0.01176819]
[1736324426396,0.09600402,95919.0,95918.0,0.01176819]
[1736324428795,0.09600402,95927.0,95918.0,0.01176819]
[1736324429098,0.09600402,95927.0,95920.0,0.052144]
[1736324429797,0.09600402,95926.0,95920.0,0.052144]
[1736324429995,0.09600402,95926.0,95918.0,0.01176819]
[1736324430303,0.3608,95928.0,95918.0,0.01176819]
[1736324430304,0.09600402,95925.0,95918.0,0.01176819]
[1736324430991,0.052145,95920.0,95918.0,0.01176819]
[1736324431402,0.09600402,95919.0,95918.0,0.01176819]
[1736324435098,0.052145,95920.0,95918.0,0.01176819]
[1736324436600,0.052145,95920.0,95918.0,0.00132819]
[1736324436791,0.052145,95920.0,95908.0,0.36236391]
[1736324436991,0.15636204,95920.0,95908.0,0.37208425]
[1736324437687,0.052145,95919.0,95908.0,0.37208425]
[1736324438202,0.09600402,95918.0,95908.0,0.37208425]
[1736324439201,0.09600402,95917.0,95908.0,0.37208425]
[1736324439598,0.3608,95915.0,95908.0,0.01128425]
[1736324441205,0.052148,95914.0,95908.0,0.01128425]
[1736324441406,0.14815202,95914.0,95908.0,0.01128425]
[1736324441608,0.052151,95909.0,95908.0,0.01128425]
[1736324442494,0.14815502,95909.0,95908.0,0.01128425]
[1736324443399,0.14815502,95909.0,95908.0,0.00972034]
[1736324443607,0.14815502,95909.0,95891.0,0.10506]
[1736324443808,0.3608,95905.0,95900.0,0.10993964]
[1736324444104,0.052153,95904.0,95900.0,0.10993964]
[1736324444708,0.09600402,95904.0,95900.0,0.10993964]
[1736324444907,0.09600402,95904.0,95881.0,0.0532]
[1736324445103,0.10421704,95891.0,95881.0,0.0633189]
[1736324445908,0.34336443,95884.0,95881.0,0.0633189]
[1736324446798,0.34336443,95884.0,95881.0,0.0101189]
[1736324447003,0.34336443,95884.0,95880.0,0.00156424]
[1736324448716,0.09600402,95883.0,95880.0,0.00156424]
[1736324449107,0.09600402,95883.0,95880.0,0.01161678]
[1736324449309,0.09600402,95883.0,95880.0,0.00156424]
[1736324449714,0.34336443,95884.0,95880.0,0.00156424]
[1736324450608,0.09600402,95883.0,95880.0,0.00156424]
[1736324452716,0.09600402,95882.0,95880.0,0.00156424]
[1736324453632,0.34336443,95884.0,95880.0,0.00156424]
[1736324454228,0.34336443,95884.0,95877.0,0.46436682]
[1736324454426,0.34336443,95884.0,95877.0,0.46328682]
[1736324454622,0.34336443,95884.0,95882.0,0.052165]
[1736324454830,0.09600402,95883.0,95882.0,0.052165]
[1736324455030,0.19576203,95884.0,95882.0,0.052165]
[1736324455224,0.4642,95913.0,95893.0,0.052159]
[1736324455416,0.10421704,95910.0,95898.0,0.3608]
[1736324455825,0.46476001,95913.0,95898.0,0.3608]
[1736324456029,0.41556001,95913.0,95899.0,0.0565]
[1736324456225,0.415,95913.0,95900.0,0.10421704]
[1736324456433,0.0532,95919.0,95911.0,0.3608]
[1736324457521,0.0532,95919.0,95911.0,0.37074178]
[1736324459829,0.0568,95922.0,95911.0,0.37074178]
[1736324460429,0.10421704,95921.0,95911.0,0.36030178]
[1736324461235,0.0568,95922.0,95911.0,0.41245078]
[1736324461624,0.0568,95922.0,95916.0,0.052146]
[1736324462035,0.09602164,95921.0,95911.0,0.36030178]
[1736324462332,0.20023868,95921.0,95911.0,0.36030178]
[1736324463029,0.052146,95918.0,95911.0,0.36030178]
[1736324463733,0.10421704,95921.0,95911.0,0.36030178]
[1736324463734,0.052147,95916.0,95911.0,0.36030178]
[1736324464639,0.09602164,95915.0,95911.0,0.36030178]
[1736324465830,0.09602164,95914.0,95911.0,0.36030178]
[1736324466527,0.09602164,95913.0,95911.0,0.36030178]
[1736324467426,0.0531,95912.0,95911.0,0.36030178]
[1736324467628,0.14912164,95912.0,95911.0,0.36030178]
[1736324468038,0.50992164,95912.0,95890.0,0.052161]
[1736324468334,0.10421704,95901.0,95887.0,0.3608]
[1736324468542,0.057,95900.0,95887.0,0.3608]
[1736324468837,0.057,95900.0,95891.0,0.01126642]
[1736324469034,0.057,95900.0,95891.0,0.00156426]
[1736324469223,0.052157,95898.0,95891.0,0.00156426]
[1736324469422,0.05216,95893.0,95891.0,0.00156426]
[1736324469632,0.10936,95892.0,95879.0,0.3608]
[1736324469830,0.10421704,95890.0,95879.0,0.3608]
[1736324470029,0.10421704,95890.0,95879.0,0.37050018]
[1736324470426,0.09602164,95891.0,95879.0,0.37050018]
[1736324470826,0.10421704,95890.0,95879.0,0.37050018]
[1736324471630,0.09602164,95889.0,95879.0,0.37050018]
[1736324471831,0.3608,95885.0,95879.0,0.00970018]
[1736324472022,0.3608,95885.0,95868.0,0.412972]
[1736324472431,0.20843408,95884.0,95868.0,0.3608]
[1736324472631,0.10421704,95878.0,95868.0,0.3608]
[1736324472836,0.0535,95877.0,95868.0,0.3608]
[1736324473429,0.20168964,95877.0,95868.0,0.3608]
[1736324473629,0.20168964,95877.0,95868.0,0.37082862]
[1736324474539,0.09602164,95876.0,95868.0,0.37082862]
[1736324475440,0.09602164,95875.0,95868.0,0.37082862]
[1736324476343,0.09602164,95875.0,95868.0,0.42300162]
[1736324476541,0.09602164,95874.0,95868.0,0.42300162]
[1736324477134,0.09602164,95874.0,95871.0,0.052171]
[1736324477335,0.09602164,95874.0,95872.0,0.05217]
[1736324477537,0.0552,95889.0,95873.0,0.0595]
[1736324477538,0.16737994,95889.0,95873.0,0.0595]
[1736324477842,0.16737994,95889.0,95879.0,0.3608]
[1736324478436,0.09605409,95888.0,95879.0,0.3608]
[1736324479035,0.09605409,95888.0,95882.0,0.052165]
[1736324479540,0.0552,95889.0,95882.0,0.052165]
[1736324479541,0.09605409,95887.0,95882.0,0.052165]
[1736324480143,0.09605409,95887.0,95879.0,0.3608]
[1736324480332,0.09605409,95886.0,95879.0,0.3608]
[1736324480734,0.052162,95888.0,95879.0,0.3608]
[1736324480936,0.052162,95888.0,95879.0,0.37093358]
[1736324481938,0.09605553,95887.0,95879.0,0.37093358]
[1736324483133,0.09605553,95886.0,95879.0,0.37093358]
[1736324483448,0.052164,95885.0,95879.0,0.37093358]
[1736324483847,0.09605553,95885.0,95879.0,0.37093358]
[1736324484943,0.09605553,95884.0,95879.0,0.37093358]
[1736324485745,0.15125553,95889.0,95879.0,0.37093358]
[1736324489447,0.09605553,95888.0,95879.0,0.37093358]
[1736324489850,0.11224013,95904.0,95887.0,0.3608]
[1736324490162,0.10421704,95900.0,95888.0,0.0571]
[1736324490458,0.052156,95899.0,95888.0,0.0571]
[1736324490653,0.052158,95895.0,95884.0,0.3608]
[1736324490955,0.22091704,95894.0,95875.0,0.0571]
[1736324491349,0.052161,95891.0,95875.0,0.04666]
[1736324491758,0.052161,95891.0,95878.0,0.3608]
[1736324492752,0.0606,95893.0,95878.0,0.3608]